Cogmind - Beta 16 @@@ ROGUE MODE // 2025.11.02 @ 05:13:36 // Winter2019/RPGLIKE Player: Toaster Result: Escaped! Performance ------------- Evolutions (9) 4500 Regions Visited (21) 4200 Robots Destroyed (652) 3260 Value Destroyed (36975) 36975 Prototype IDs (51) 1020 Alien Tech Used (2) 400 Bonus (19017) 19017 TOTAL SCORE: 69372 Bonus ------- Triggered High Security 1000 High Alert Combat Kills 13011 Follower Combat Kills 606 Registered with UFD 300 Met Data Miner 300 Met Zhirov 300 Scanned by Researcher 500 Win 3000 Cogmind --------- Core Integrity 550/2000 Matter 400/400 Energy 1120/1130 System Corruption 6% Temperature Cool (-191) Movement Walking (127) Location To Epsilon Eridani Parts ------- > --- POWER (3+1) ------ Improved Deuterium Engine (+) Particle Reactor Improved Quantum Reactor Improved Quantum Reactor > --- PROPULSION (6) --- Biometal Leg Improved Thunder Leg Heavy Shield Leg (fused) Heavy Shield Leg > --- UTILITY (10) ----- Advanced Cryofiber Web Advanced Signal Interpreter Advanced Reaction Control System Advanced Phase Shifter Improved Heavy Armor Plating Light Regenerative Plating Graphene Brace Advanced Force Field Long-range Tractor Beam > --- WEAPON (6) ------- Powered Cannon Enhanced Hardcell Cannon Enhanced Hardcell Cannon Enhanced Hardcell Cannon Gamma Bomb Array > --- INVENTORY (1) ---- Enhanced Hardcell Cannon Peak State ------------ > --- POWER ------------ Improved Deuterium Engine Particle Reactor Improved Quantum Reactor Improved Quantum Reactor > --- PROPULSION ------- Biometal Leg Improved Thunder Leg Heavy Shield Leg Heavy Shield Leg > --- UTILITY ---------- Advanced Cryofiber Web Advanced Signal Interpreter Advanced Reaction Control System Advanced Phase Shifter Improved Heavy Armor Plating Light Regenerative Plating Graphene Brace Advanced Force Field Long-range Tractor Beam > --- WEAPON ----------- Powered Cannon Enhanced Hardcell Cannon Enhanced Hardcell Cannon Enhanced Hardcell Cannon Enhanced Hardcell Cannon > --- INVENTORY -------- (None) [Rating: 199] Favorites ----------- Power Improved Deuterium Engine Engine Improved Deuterium Engine Power Core Nuclear Core Reactor Improved Quantum Reactor Propulsion Flexi-carbon Leg Leg Flexi-carbon Leg Utility Improved Heavy Armor Plating Device Long-range Tractor Beam Processor Advanced Signal Interpreter Hackware Advanced Hacking Suite Protection Improved Heavy Armor Plating Weapon Enhanced Hardcell Cannon Energy Gun Riot Gun Energy Cannon Powered Cannon Ballistic Gun KE Penetrator Ballistic Cannon Enhanced Hardcell Cannon Launcher Gamma Bomb Array Special Weapon Mining Laser Build | -11 -10 -10 -8 -8 -6 -6 -6 -6 -5 -5 -5 -5 -5 -4 -4 -4 -3 -2 -2 -1 -1 ------- Run | Yrd Mat Sub Rec Scr Fac Low Low Dat Pro Fac Upp Upp Zhi Pro Fac Arm Res Res Qua Acc Com Slots Evolved 20 | 3 . 1 6 . 1 . . . 1 2 . . . 1 2 . 1 1 . 1 . Power 2 | . . . 1 . . . . . . . . . . . . . . 1 . . . Propulsion 4 | 1 . . 1 . 1 . . . . . . . . . . . 1 . . . . Utility 9 | 1 . . 3 . . . . . 1 1 . . . 1 1 . . . . 1 . Weapon 5 | 1 . 1 1 . . . . . . 1 . . . . 1 . . . . . . Parts Attached 93 | 5 6 9 14 2 9 1 1 . 1 4 2 1 1 2 8 3 11 10 1 1 1 Power 10 | 1 . . 2 1 1 . . . . . . . . . . . 2 2 1 . . Engine 3 | 1 . . 1 . 1 . . . . . . . . . . . . . . . . Core 2 | . . . 1 1 . . . . . . . . . . . . . . . . . Reactor 5 | . . . . . . . . . . . . . . . . . 2 2 1 . . Propulsion 23 | 2 . 1 3 1 2 . 1 . . 2 1 1 . . 1 1 3 4 . . . Treads . | . . . . . . . . . . . . . . . . . . . . . . Leg 23 | 2 . 1 3 1 2 . 1 . . 2 1 1 . . 1 1 3 4 . . . Wheel . | . . . . . . . . . . . . . . . . . . . . . . Hover . | . . . . . . . . . . . . . . . . . . . . . . Flight . | . . . . . . . . . . . . . . . . . . . . . . Utility 36 | . 4 2 7 . 4 1 . . 1 1 1 . 1 2 4 1 3 3 . 1 . Device 19 | . 2 1 4 . 3 . . . 1 . 1 . . . 2 1 2 1 . 1 . Storage . | . . . . . . . . . . . . . . . . . . . . . . Processor 4 | . 1 . . . 1 . . . . 1 . . . . . . 1 . . . . Hackware 4 | . 1 . . . . . . . . . . . . 1 1 . . 1 . . . Protection 9 | . . 1 3 . . 1 . . . . . . 1 1 1 . . 1 . . . Artifact . | . . . . . . . . . . . . . . . . . . . . . . Weapon 24 | 2 2 6 2 . 2 . . . . 1 . . . . 3 1 3 1 . . 1 Energy Gun 2 | . . 2 . . . . . . . . . . . . . . . . . . . Energy Cannon 2 | . . 2 . . . . . . . . . . . . . . . . . . . Ballistic Gun 5 | 2 . 1 . . . . . . . 1 . . . . 1 . . . . . . Ballistic Cannon 13 | . 2 . 2 . 2 . . . . . . . . . 2 1 3 1 . . . Launcher 1 | . . . . . . . . . . . . . . . . . . . . . 1 Special Weapon 1 | . . 1 . . . . . . . . . . . . . . . . . . . Impact Weapon . | . . . . . . . . . . . . . . . . . . . . . . Slashing Weapon . | . . . . . . . . . . . . . . . . . . . . . . Piercing Weapon . | . . . . . . . . . . . . . . . . . . . . . . Special Melee Weapon . | . . . . . . . . . . . . . . . . . . . . . . Unidentified Prototypes 7 | . . . . . 1 1 . . . . . . 2 . 1 . . 2 . . . Parts Lost 3 | . . . . . 1 . . . . . . . . . 1 1 . . . . . Power . | . . . . . . . . . . . . . . . . . . . . . . Propulsion . | . . . . . . . . . . . . . . . . . . . . . . Utility 3 | . . . . . 1 . . . . . . . . . 1 1 . . . . . Weapon . | . . . . . . . . . . . . . . . . . . . . . . Highest Loss Streak 1 | . . . . . 1 . . . . . . . . . 1 1 . . . . . To Critical Strikes . | . . . . . . . . . . . . . . . . . . . . . . Average Backups . | . . 1 . . . . 1 1 . . . 1 1 . . . . . . . 1 Power . | . . . . . . . . . . . . . . . . . . . . . . Propulsion . | . . . . . . . . . . . . . . . . . . . . . . Utility . | . . . . . . . 1 1 . . . 1 1 . . . . . . . . Weapon . | . . 1 . . . . . . . . . . . . . . . . . . . Tool/Special . | . . . . . . . . . . . . . . . . . . . . . . Unused Backups 5 | . . . 1 . . . . . . 1 . . 1 . 1 . . . . . 1 Power . | . . . . . . . . . . . . . . . . . . . . . . Propulsion . | . . . . . . . . . . . . . . . . . . . . . . Utility 4 | . . . . . . . . . . 1 . . 1 . 1 . . . . . 1 Weapon 1 | . . . 1 . . . . . . . . . . . . . . . . . . Tool/Special . | . . . . . . . . . . . . . . . . . . . . . . Average Slot Usage (%) 87 | . 95 91 78 85 91 89 86 88 88 89 90 90 89 89 90 87 84 86 83 84 84 Engine 5 | . 14 11 7 2 4 5 5 5 5 5 5 5 5 4 4 4 4 4 4 3 3 Core 6 | . . . 3 9 12 11 11 11 11 10 10 10 10 9 8 8 3 . . . . Reactor 2 | . . . . . . . . . . . . . . . . . 4 9 11 11 11 Leg 21 | . 28 24 19 19 24 24 27 29 27 25 25 25 25 23 21 18 16 18 16 15 15 Device 17 | . 6 7 7 20 18 20 17 17 21 20 20 20 19 16 13 15 17 19 20 22 23 Processor 3 | . 13 11 5 . . . . . . 2 5 5 5 4 4 4 7 4 4 3 3 Protection 7 | . . 3 10 13 10 5 5 5 5 4 5 5 5 6 11 13 8 8 8 7 7 Energy Cannon 4 | . . 6 7 6 6 5 5 5 5 5 5 5 5 4 4 4 4 4 4 3 3 Ballistic Gun 2 | . 13 10 1 . . . . . . 4 5 5 5 4 3 . . . . . . Ballistic Cannon 12 | . 14 10 12 13 11 11 11 11 11 10 10 10 10 9 11 17 16 16 16 15 14 Peak Build Rating 199 | 5 9 29 48 53 71 74 77 77 82 97 100 101 102 110 130 145 169 191 192 199 199 Average Rating 107 | 3 7 19 38 50 65 72 76 77 81 91 99 100 100 108 122 140 157 182 191 197 198 On Entrance 93 | . 5 7 29 48 53 71 74 77 77 82 97 100 101 101 110 130 139 169 191 192 199 Avg Prop Armor Cover (%) 9 | . . . . . . . . . . . . . . . . . . 9 . . . Naked Turns . | . . . . . . . . . . . . . . . . . . . . . . Heaviest Build 166 | 9 12 23 50 53 71 70 70 70 75 80 80 80 80 87 116 119 147 166 166 166 166 Greatest Support 181 | 25 25 35 57 58 82 82 97 97 97 108 108 108 108 108 116 136 149 181 181 181 181 Greatest Overweight (x) 1 | . . . 1 1 1 . . . . . . . . . 1 1 1 1 . . . Average Overweight (x) . | . . . . . . . . . . . . . . . . . . . . . . Largest Inventory Capacity 1 | 1 1 1 1 1 1 1 1 1 1 1 1 1 1 1 1 1 1 1 1 1 1 Average Capacity . | . 1 1 1 1 1 1 1 1 1 1 1 1 1 1 1 1 1 1 1 1 1 Most Carried 1 | 1 1 1 1 1 1 1 1 1 1 1 1 1 1 1 1 1 1 1 1 1 1 Average Carried . | . . . . . . . . 1 . . . 1 . . . . . . . . . Final Capacity 1 | 1 1 1 1 1 1 1 1 1 1 1 1 1 1 1 1 1 1 1 1 1 1 Final Carried 1 | . 1 1 . 1 . 1 1 1 1 . 1 1 1 1 1 . . . . 1 1 Class Distribution -------------------- 36% | Hacker-Executioner 18% | Hacker-Skirmisher 18% | Hacker-Tank 6% | Gunner 5% | Commander-Tank 4% | Mutant 3% | Hacker-Gunner Dominant Class ---------------- Mutant | -10/Materials Gunner | -10/Subcaves Gunner | -8/Recycling Commander-Tank | -8/Scraptown Hacker-Tank | -6/Factory Hacker-Tank | -6/Lower Caves Hacker-Tank | -6/Lower Caves Hacker-Tank | -6/Data Miner Hacker-Tank | -5/Proximity Caves Hacker-Skirmisher | -5/Factory Hacker-Skirmisher | -5/Upper Caves Hacker-Skirmisher | -5/Upper Caves Hacker-Skirmisher | -5/Zhirov Hacker-Skirmisher | -4/Proximity Caves Hacker-Executioner | -4/Factory Hacker-Executioner | -4/Armory Hacker-Executioner | -3/Research Hacker-Executioner | -2/Research Hacker-Executioner | -2/Quarantine Hacker-Executioner | -1/Access Hacker-Executioner | -1/Command Resources | -11 -10 -10 -8 -8 -6 -6 -6 -6 -5 -5 -5 -5 -5 -4 -4 -4 -3 -2 -2 -1 -1 ----------- Run | Yrd Mat Sub Rec Scr Fac Low Low Dat Pro Fac Upp Upp Zhi Pro Fac Arm Res Res Qua Acc Com Matter Collected 21285 | 250 343 403 345 20 887 474 79 . 310 701 180 372 . 422 1871 1176 1974 3596 908 3276 3698 Remotely 20463 | . 177 323 50 20 887 474 79 . 310 701 180 372 . 422 1871 1176 1974 3577 908 3276 3686 Salvage Created 25445 | . 351 168 883 . 1399 1279 228 . 159 1291 360 962 . 791 2457 906 1907 3451 803 2120 5930 Parts 1181 | . 29 15 42 . 66 36 7 . 8 62 11 42 . 21 79 27 93 166 52 142 283 Haulers Intercepted 4 | . 2 . . . . . . . . . . . . . 1 . . . . 1 . Recyclers Shooed 5 | . . . 1 . . . . . . 2 . . . . 1 . 1 . . . . Parts Field Recycled . | . . . . . . . . . . . . . . . . . . . . . . Retrieved Matter . | . . . . . . . . . . . . . . . . . . . . . . Parts Self-Destructed 136 | . . 17 . . . 32 6 . 8 . 11 39 . 23 . . . . . . . Prevented 5 | . . . . . . . . . . . 1 4 . . . . . . . . . Parts Restored . | . . . . . . . . . . . . . . . . . . . . . . Kills | -11 -10 -10 -8 -8 -6 -6 -6 -6 -5 -5 -5 -5 -5 -4 -4 -4 -3 -2 -2 -1 -1 ------- Run | Yrd Mat Sub Rec Scr Fac Low Low Dat Pro Fac Upp Upp Zhi Pro Fac Arm Res Res Qua Acc Com Combat Hostiles Destroyed 530 | . 11 11 20 . 28 20 3 . 10 24 7 23 . 16 39 25 38 75 17 63 100 Guns 12 | . 3 . 1 . . . . . . 2 1 2 . 2 1 . . . . . . Cannons 442 | . 8 11 19 . 27 19 3 . 8 20 6 18 . 13 34 22 33 70 16 62 53 AOE 15 | . . . . . . . . . . . . . . . . . . . . . 15 Classes Destroyed 31 | . 6 2 6 . 2 3 . . 2 1 . 1 . 1 . 1 . . . 1 5 Worker 23 | . . . . . 2 . . . . . . . . . 2 . 2 3 . 3 11 Builder 26 | . 1 . . . 1 . . . . 1 . . . . 6 . 2 8 4 3 . Hauler 4 | . 2 . . . . . . . . . . . . . 1 . . . . 1 . Recycler 8 | . . . 2 . 1 . . . . 1 . . . . . . 2 1 . 1 . Carrier 3 | . . . . . . . . . . . . 1 . . . . . 1 . . 1 Minesweeper 1 | . . . . . . . . . 1 . . . . . . . . . . . . Mechanic 3 | . . . . . 1 . . . . 1 . . . . . . . . . . 1 Operator 14 | . 1 . . . 1 . . . . 2 . . . . 3 1 1 1 1 1 2 Drone 2 | . . . . . . . . . . . . . . 1 . . . . . 1 . Turret 3 | . . 2 . . . . . . . . . . . . . . 1 . . . . Watcher 36 | . 2 . . . 1 . . . . 3 . . . . 4 . 4 6 2 8 6 Swarmer 71 | . 3 3 . . 3 . . . 5 . 1 11 . 5 . 5 . 5 . 25 5 Cutter 4 | . . . . . . . . . . . . . . . . . . . . . 4 Saboteur 12 | . . . . . . . . . . 1 . . . . . 4 . 3 . . 4 Grunt 154 | . 8 . 5 . 9 9 1 . 2 9 5 3 . 7 14 6 9 19 . 8 40 Brawler 14 | . . . . . . . . . . 1 . 2 . . . . . 3 . . 8 Duelist 16 | . . . . . . 1 . . . 1 . 1 . 2 1 . . 4 . . 6 Protector 10 | . . . 3 . 1 . . . . . . . . . . . . . . . 6 Sentry 38 | . . . 6 . 5 1 . . 1 5 1 2 . 1 5 3 2 3 . . 3 Demolisher 2 | . . . 1 . . . . . . . . . . . . 1 . . . . . Specialist 4 | . . . . . . . . . . . . . . . . 1 . . 3 . . Hunter 62 | . . . 1 . 3 2 1 . 1 . . . . . 10 2 6 20 5 9 2 Programmer 107 | . . . 4 . 8 1 1 . . 7 . . . . 9 3 21 16 9 18 10 Heavy 2 | . . . . . . . . . . . . . . . . . . . . 1 1 Behemoth 7 | . . . . . . . . . 1 . . . . . . . . 2 . 1 3 Investigator 1 | . . . . . . . . . . . . . . . . . . . . . 1 Striker 2 | . . . . . . . . . . . . . . . . . . . . . 2 Executioner 4 | . . . . . . . . . . . . . . . . . . . . . 4 Alpha 7 2 | . . . . . . . . . . . . . . . . . . . . . 2 Subdweller 8 | . . 8 . . . . . . . . . . . . . . . . . . . Thug 2 | . . . . . . 1 . . . . . 1 . . . . . . . . . Savage 7 | . . . . . . 4 . . . . . 3 . . . . . . . . . Mutant 1 | . . . . . . 1 . . . . . . . . . . . . . . . Best Kill Streak 38 | . 3 4 4 . 4 5 1 . 5 6 4 9 . 5 14 8 7 18 6 10 38 Combat Bots Only 34 | . 3 3 4 . 4 5 1 . 5 6 4 9 . 5 11 7 6 15 4 8 34 Max Kills in Single Turn 5 | . 1 2 3 . 2 1 1 . 1 2 1 2 . 1 3 1 2 3 2 3 5 Gunslinging . | . . . . . . . . . . . . . . . . . . . . . . Exploded 4 | . . . . . . . . . . . . . . . . . . . . . 4 Melee . | . . . . . . . . . . . . . . . . . . . . . . Uniques/NPCs Destroyed . | . . . . . . . . . . . . . . . . . . . . . . Combat | -11 -10 -10 -8 -8 -6 -6 -6 -6 -5 -5 -5 -5 -5 -4 -4 -4 -3 -2 -2 -1 -1 -------- Run | Yrd Mat Sub Rec Scr Fac Low Low Dat Pro Fac Upp Upp Zhi Pro Fac Arm Res Res Qua Acc Com Hostile Shots Fired 2869 | . 53 67 46 . 179 131 8 . 47 65 24 38 . 38 188 98 192 309 136 498 752 Missed 1373 | . 19 23 19 . 79 36 1 . 16 29 7 13 . 14 67 39 98 139 70 306 398 Deflected 51 | . . . . . . . . . . . . . . . . 3 7 13 . 10 18 Hits 1496 | . 34 44 27 . 100 95 7 . 31 36 17 25 . 24 121 59 94 170 66 192 354 Melee 5 | . . . . . . . . . . . . 2 . . . . . . . . 3 Projectile 1491 | . 34 44 27 . 100 95 7 . 31 36 17 23 . 24 121 59 94 170 66 192 351 AOE 7 | . . . . . . . . . . . . . . . . 6 . . . . 1 Critical Strikes 69 | . . 1 . . 2 . . . 1 3 2 . . 1 7 2 9 7 . 8 26 Actively Blocked 56 | . . . . . . . . . . . . . . . 4 2 9 7 . 8 26 Part Disruptions 2 | . . . . . . . . . . . . . . . . . . 1 . . 1 Damage Taken 16813 | . 445 579 376 . 1263 1076 82 . 530 696 266 449 . 380 1375 687 855 1509 348 1566 4331 Core 11245 | . 355 469 293 . 875 730 67 . 367 441 165 289 . 239 863 395 516 969 223 1044 2945 Absorbed by Shields 7887 | . . . . . 12 . . . . . . . . . 571 504 901 1580 384 1657 2278 Redirected to Core 10457 | . 302 368 225 . 771 646 51 . 341 441 165 269 . 227 815 395 516 882 215 1007 2821 Ignored by Resistances 3518 | . . . 24 . 195 189 8 . 100 83 42 69 . 66 304 135 135 456 119 550 1043 Regen/Repaired (Parts) 1242 | . . . . . . . . . . 489 . . . . 462 13 45 64 . 43 126 Core Remaining (%) 75 | 100 . . . 100 . . . . 77 . . . . 93 . 50 60 . 97 . 27 Volleys Fired 1040 | . 41 51 46 . 85 43 8 . 25 52 12 36 . 27 82 47 63 110 31 126 155 Largest 5 | . 2 3 3 . 3 3 3 . 3 4 4 4 . 4 5 5 5 5 5 5 5 Hottest 352 | . 60 154 114 . 117 117 197 . 197 150 230 230 . 150 291 305 272 352 272 352 352 Shots Fired 3618 | . 82 96 83 . 215 113 20 . 72 175 41 96 . 82 371 199 313 520 142 472 526 Gun 206 | . 43 19 3 . . . . . . 41 10 20 . 17 53 . . . . . . Cannon 3362 | . 39 72 80 . 215 113 20 . 72 134 31 76 . 65 318 199 313 520 142 472 481 Launcher 45 | . . . . . . . . . . . . . . . . . . . . . 45 Special 5 | . . 5 . . . . . . . . . . . . . . . . . . . Kinetic 2773 | . 82 67 39 . 141 70 12 . 50 123 30 67 . 66 295 162 252 427 111 389 390 Thermal 796 | . . 25 44 . 74 43 8 . 22 52 11 29 . 16 76 37 61 93 31 83 91 Explosive . | . . . . . . . . . . . . . . . . . . . . . . Electromagnetic 49 | . . 4 . . . . . . . . . . . . . . . . . . 45 Robot Hit Streak 61 | . 25 32 25 . 18 15 6 . 13 20 15 17 . 33 29 27 17 38 19 35 61 Robot Miss Streak 4 | . 4 1 2 . 4 2 1 . 2 3 1 1 . 3 3 3 2 3 2 3 2 Penetration Max 1 | . . . . . . . . . . 1 . 1 . . 1 1 1 . . . . Secondary Targets . | . . . . . . . . . . . . . . . . . . . . . . Shots Hit Robots 2169 | . 58 64 55 . 121 74 13 . 50 98 29 54 . 49 228 116 176 302 71 285 326 Core Hits 1078 | . 24 23 27 . 51 30 6 . 14 48 13 27 . 22 101 40 66 138 30 94 324 Critical Kills 35 | . . . . . 1 2 . . 2 2 . 3 . 1 4 3 5 4 1 1 6 Critical Parts Destroyed 5 | . . . . . . . . . . 1 . 1 . . 3 . . . . . . Critical Strikes 161 | . 2 3 2 . 6 5 . . 5 4 . 7 . 2 17 8 20 30 3 21 26 Meltdown 35 | . . . . . 1 2 . . 2 2 . 3 . 1 4 3 5 4 1 1 6 Destroy 6 | . . . . . . . . . . 1 . 2 . . 3 . . . . . . Blast 120 | . 2 3 2 . 5 3 . . 3 1 . 2 . 1 10 5 15 26 2 20 20 Melee Attacks . | . . . . . . . . . . . . . . . . . . . . . . Impact . | . . . . . . . . . . . . . . . . . . . . . . Slashing . | . . . . . . . . . . . . . . . . . . . . . . Piercing . | . . . . . . . . . . . . . . . . . . . . . . Sneak Attacks . | . . . . . . . . . . . . . . . . . . . . . . Combat Hostiles . | . . . . . . . . . . . . . . . . . . . . . . Follow-up Attacks . | . . . . . . . . . . . . . . . . . . . . . . Damage Inflicted 106387 | . 1101 1140 2463 . 4868 3325 594 . 2072 4450 1097 2267 . 1812 9065 5095 8268 16015 3760 15223 23772 Guns 3232 | . 364 302 48 . . . . . . 906 199 317 . 256 840 . . . . . . Cannons 94636 | . 509 838 2396 . 4827 3325 588 . 2072 3534 898 1950 . 1556 8208 5095 8249 16006 3753 15171 15661 Explosions 8312 | . 227 . . . . . . . . . . . . . . . . . . . 8085 Melee . | . . . . . . . . . . . . . . . . . . . . . . Ramming 207 | . 1 . 19 . 41 . 6 . . 10 . . . . 17 . 19 9 7 52 26 Kinetic 68256 | . 873 966 622 . 2434 1534 257 . 1110 2539 624 1110 . 1119 6219 3658 6157 12195 2806 12212 11821 Thermal 31340 | . . 114 1822 . 2393 1791 331 . 962 1901 473 1157 . 693 2829 1437 2092 3811 947 2959 5628 Explosive 227 | . 227 . . . . . . . . . . . . . . . . . . . . Electromagnetic 6357 | . . 60 . . . . . . . . . . . . . . . . . . 6297 Impact . | . . . . . . . . . . . . . . . . . . . . . . Slashing . | . . . . . . . . . . . . . . . . . . . . . . Piercing . | . . . . . . . . . . . . . . . . . . . . . . Highest Corruption 8 | . . . . . 1 1 1 . . 2 . . . . 1 2 8 3 5 3 6 Average Corruption 2 | . . . . . 1 1 1 . . 1 . . . . 1 1 8 2 3 2 3 Corruption Purged 6 | . . . . . 1 1 1 . . 3 . . . . . . . . . . . Corruption Blocked . | . . . . . . . . . . . . . . . . . . . . . . Effects 129 | . . . . . 18 . . . . . . . . . 1 4 3 18 15 22 48 Message Errors 28 | . . . . . 6 . . . . . . . . . . . . 4 5 4 9 Matter Fused 33 | . . . . . 5 . . . . . . . . . 1 1 . 7 2 6 11 Heat Flow Errors 18 | . . . . . 4 . . . . . . . . . . 1 2 3 4 1 3 Energy Discharges 19 | . . . . . 1 . . . . . . . . . . 1 . . 2 3 12 Parts Rejected 3 | . . . . . . . . . . . . . . . . . . 1 . 1 1 Parts Fused 1 | . . . . . . . . . . . . . . . . . . . . 1 . Data Loss (minor) 7 | . . . . . 1 . . . . . . . . . . . 1 . 1 2 2 Data Loss (major) 2 | . . . . . . . . . . . . . . . . . . . . 2 . Misfires 6 | . . . . . . . . . . . . . . . . 1 . 1 . 1 3 Alerts 5 | . . . . . 1 . . . . . . . . . . . . . . 1 3 Weapon Failures 7 | . . . . . . . . . . . . . . . . . . 2 1 . 4 Overload Shots 22 | . . . . . . . 2 . 2 . 2 1 . . 2 2 . 4 . 1 6 Overflow Damage 4819 | . . 12 165 . 284 267 105 . 102 170 59 40 . 41 325 251 511 693 320 946 528 Projectiles 4726 | . . 12 165 . 282 267 105 . 102 170 59 40 . 41 325 251 511 693 320 909 474 Explosions 54 | . . . . . . . . . . . . . . . . . . . . . 54 Melee 39 | . . . . . 2 . . . . . . . . . . . . . . 37 . Knockbacks 374 | . 4 8 3 . 20 7 1 . 4 10 1 . . 11 44 15 51 71 17 58 49 Impact 2 | . . . . . 1 . . . . . . . . . . . 1 . . . . Kinetic 339 | . 4 8 3 . 19 6 1 . 4 9 1 . . 9 41 14 48 64 13 49 46 Secondary 33 | . . . . . . 1 . . . 1 . . . 2 3 1 2 7 4 9 3 Self-Inflicted Damage 239 | . 49 . . . . . . . . . . . . . . . . . . . 190 Shots 10 | . 1 . . . . . . . . . . . . . . . . . . . 9 Rammed . | . . . . . . . . . . . . . . . . . . . . . . Targets Rammed 17 | . 1 . 4 . 3 . 1 . . 2 . . . . 1 . 1 1 1 1 1 Kicked 17 | . 1 . 4 . 3 . 1 . . 2 . . . . 1 . 1 1 1 1 1 Crushed . | . . . . . . . . . . . . . . . . . . . . . . Highest Temperature 330 | . 29 84 322 . 195 271 122 . 257 272 330 90 . 12 200 200 141 276 . . 112 Average Temperature 85 | . 11 15 106 . 70 98 60 . 105 90 174 52 . 8 85 120 23 76 . . 38 Received Heat Transfer 2251 | . 168 210 117 . 252 198 18 . 57 198 102 36 . 48 272 16 83 108 . 36 332 Effects 3 | . . . . . . . . . 1 . 1 . . . . 1 . . . . . Energy Bleed 2 | . . . . . . . . . . . 1 . . . . 1 . . . . . Interference 1 | . . . . . . . . . 1 . . . . . . . . . . . . Siege Activations . | . . . . . . . . . . . . . . . . . . . . . . Martial Activations . | . . . . . . . . . . . . . . . . . . . . . . Shielding Activations 55 | . . . . . . . . . . . . . . . . 3 6 17 1 13 15 Total Turns 1003 | . . . . . . . . . . . . . . . . 75 81 223 17 257 350 Longest Duration 85 | . . . . . . . . . . . . . . . . 42 29 33 17 85 84 Robots Disrupted 4 | . . . . . . . . . . . . . . . . . . . . . 4 Combat Hostiles 3 | . . . . . . . . . . . . . . . . . . . . . 3 Robots Corrupted 31 | . . . . . 1 . . . . . . . . . 1 . . 1 . . 28 Combat Hostiles 28 | . . . . . . . . . . . . . . . . . . 1 . . 27 Parts Fried 73 | . . . . . 1 . . . . . . . . 1 2 . . . . 1 68 Impact Corruptions 7 | . . . . . 1 . . . . . . . . 1 1 . . 1 . 3 . Robots Melted 35 | . . . . . 1 2 . . 2 2 . 3 . 1 4 3 5 4 1 1 6 Combat Hostiles 33 | . . . . . 1 2 . . 2 2 . 2 . 1 4 3 5 4 1 1 5 Parts Melted 62 | . . 2 . . 2 2 . . . 4 . 2 . 1 6 5 9 11 4 3 11 Heat Transferred 1674 | . . 148 . . . . . . . . . . . . . . . . . . 1526 Parts Sabotaged . | . . . . . . . . . . . . . . . . . . . . . . Parts Stolen . | . . . . . . . . . . . . . . . . . . . . . . Parts Stripped . | . . . . . . . . . . . . . . . . . . . . . . Power Chain Reactions 13 | . . . . . . . . . . . . . . . . . . . . . 13 Alert | -11 -10 -10 -8 -8 -6 -6 -6 -6 -5 -5 -5 -5 -5 -4 -4 -4 -3 -2 -2 -1 -1 ------- Run | Yrd Mat Sub Rec Scr Fac Low Low Dat Pro Fac Upp Upp Zhi Pro Fac Arm Res Res Qua Acc Com Maximum Alert Level 5 | . 1 . 2 . 1 . . . . 1 . . . . 2 3 3 5 4 4 5 Low Security (%) 36 | 100 98 . 51 . 87 . . . . 62 . . . . 68 . . . . 1 . Level 1 23 | . 1 . 35 . 13 . . . . 37 . . . . 15 46 45 28 . 26 . Level 2 16 | . . . 12 . . . . . . . . . . . 16 36 49 20 . 35 . Level 3 11 | . . . . . . . . . . . . . . . . 17 4 21 30 29 37 Level 4 6 | . . . . . . . . . . . . . . . . . . 16 69 7 9 Level 5 4 | . . . . . . . . . . . . . . . . . . 9 . . 36 High Security 1 | . . . . . . . . . . . . . . . . . . 3 . . 15 Max Security . | . . . . . . . . . . . . . . . . . . . . . . Peak Influence 3874 | . 203 . 453 . 280 . . . . 335 . . . . 574 938 747 2212 1385 1241 3874 Initial 1244 | . . . . . . . . . . . . . . . 450 280 476 418 1244 439 788 Average 502 | . 58 . 184 . 71 . . . . 123 . . . . 203 480 415 851 1119 616 1839 Influence Increases 18118 | . 499 145 809 . 983 416 90 . 239 1019 155 445 . 400 1933 908 1262 2440 631 2075 3669 Destroy 0b10 Robot/C 10460 | . 220 100 460 . 600 360 60 . 200 480 140 400 . 300 800 560 760 1520 340 1240 1920 Destroy 0b10 Robot/NC 720 | . 30 . 80 . 35 10 5 . 5 40 5 . . 10 90 5 55 95 35 90 130 Destroy Leader 1856 | . 58 . . . 192 30 20 . 30 106 10 30 . 20 182 100 188 312 64 226 288 Allied During Kill 167 | . . . 53 . 10 16 5 . 4 . . . . 10 21 48 . . . . . Successful Hack 258 | . 27 . 13 . 27 . . . . 56 . . . . 63 . . 30 . 42 . Select Force Hacks 180 | . 30 . 150 . . . . . . . . . . . . . . . . . . Disable Machine 825 | . 90 . . . 60 . . . . 30 . . . . 90 105 75 105 105 90 75 Anti-Garrison Action 200 | . . . . . . . . . . 150 . . . . . . . . . . 50 Destroy Structure 1772 | . 29 . 38 . 44 . . . . 82 . . . . 162 90 154 318 87 282 486 Advance Influence 450 | . . . . . . . . . . . . . . . 450 . . . . . . Partial Spotted 45 | . . . . . 15 . . . . . . . . . 15 . . . . 15 . Lose Combat Pursuer 1185 | . 15 45 15 . . . . . . 75 . 15 . 60 60 . 30 60 . 90 720 Influence Decreases 14244 | . 314 330 374 435 713 538 238 . 239 1002 150 446 21 400 1361 572 1426 972 2110 1576 1027 Entered New Map 3443 | . . 89 . 435 . 100 29 . . . 8 5 21 . . 292 432 326 968 294 444 Time Decay 7515 | . 314 241 354 . 448 418 209 . 219 491 142 441 . 400 611 230 694 646 392 682 583 Search Patrol Dispatched 100 | . . . . . . . . . . . . . . . 100 . . . . . . Lost Part 30 | . . . . . 10 . . . . . . . . . 10 10 . . . . . Lost Ally 140 | . . . 20 . 20 20 . . 20 . . . . . 20 40 . . . . . Purge Threat 3016 | . . . . . 235 . . . . 511 . . . . 620 . 300 . 750 600 . Squads Dispatched 109 | . 3 . . . 14 . . . . 7 . . . . 12 4 14 16 4 13 22 Investigation 11 | . 3 . . . . . . . . . . . . . 3 1 2 2 . . . Extermination 43 | . . . . . 6 . . . . 4 . . . . 4 1 8 6 3 7 4 Reinforcement 19 | . . . . . 2 . . . . 1 . . . . 2 2 1 2 1 5 3 Assault 24 | . . . . . . . . . . 2 . . . . . . . 6 . 1 15 Garrison 12 | . . . . . 6 . . . . . . . . . 3 . 3 . . . . Intercept . | . . . . . . . . . . . . . . . . . . . . . . Searches Triggered 1 | . . . . . . . . . . . . . . . 1 . . . . . . Unchained Authorized 3 | . . . . . . . . . . . . . . . . . 1 1 . 1 . Data Miner Redirects 2 | . . . . . . . . . . 1 . . . . 1 . . . . . . Construction Impeded 5 | . . . . . . . . . . . . . . . 2 . . 1 . 2 . Haulers Reinforced 1 | . . . . . 1 . . . . . . . . . . . . . . . . Active Scanning Responses . | . . . . . . . . . . . . . . . . . . . . . . Cargo Convoy Interrupts 1 | . . . . . . . . . . . . . . . . . . 1 . . . Stealth | -11 -10 -10 -8 -8 -6 -6 -6 -6 -5 -5 -5 -5 -5 -4 -4 -4 -3 -2 -2 -1 -1 --------- Run | Yrd Mat Sub Rec Scr Fac Low Low Dat Pro Fac Upp Upp Zhi Pro Fac Arm Res Res Qua Acc Com Distress Signals 23 | . . . . . 2 . . . . 2 . . . . 2 1 3 4 1 3 5 Communications Jammed 45 | . . . . . . . . . . 29 . . . . 16 . . . . . . Distress Signals 44 | . . . . . . . . . . 28 . . . . 16 . . . . . . Times Spotted 698 | . 17 14 19 . 52 24 3 . 10 37 8 13 . 18 61 30 52 85 21 82 152 Peak Tracking Total 42 | . 4 4 5 . 3 5 1 . 5 7 3 3 . 7 12 7 8 7 4 8 42 Tactical Retreats 39 | . 1 1 1 . 8 . . . . 3 . 1 . 2 1 . 6 4 . 4 7 ECM-based Alert Blocks 13 | . . . . . 13 . . . . . . . . . . . . . . . . Traps | -11 -10 -10 -8 -8 -6 -6 -6 -6 -5 -5 -5 -5 -5 -4 -4 -4 -3 -2 -2 -1 -1 ------- Run | Yrd Mat Sub Rec Scr Fac Low Low Dat Pro Fac Upp Upp Zhi Pro Fac Arm Res Res Qua Acc Com Traps Triggered 63 | . 1 . . . 1 . . . . 1 . . . . 1 . 1 2 . 4 52 Indirectly 52 | . . . . . . . . . . . . . . . . . . . . . 52 Trap Hack Attempts . | . . . . . . . . . . . . . . . . . . . . . . Triggered . | . . . . . . . . . . . . . . . . . . . . . . Disarmed . | . . . . . . . . . . . . . . . . . . . . . . Reprogrammed . | . . . . . . . . . . . . . . . . . . . . . . Reused . | . . . . . . . . . . . . . . . . . . . . . . Traps Extracted . | . . . . . . . . . . . . . . . . . . . . . . Installed . | . . . . . . . . . . . . . . . . . . . . . . Triggered . | . . . . . . . . . . . . . . . . . . . . . . Machines | -11 -10 -10 -8 -8 -6 -6 -6 -6 -5 -5 -5 -5 -5 -4 -4 -4 -3 -2 -2 -1 -1 ---------- Run | Yrd Mat Sub Rec Scr Fac Low Low Dat Pro Fac Upp Upp Zhi Pro Fac Arm Res Res Qua Acc Com Machines Disabled 66 | . 6 2 . . 4 . . . . 3 1 1 . . 9 7 5 8 7 6 7 Max in Single Turn 3 | . 3 1 . . 1 . . . . 1 1 1 . . 2 1 1 1 2 1 2 Garrison Access 1 | . . . . . . . . . . 1 . . . . . . . . . . . Phase Generator 1 | . . . . . . . . . . . . . . . . . . . . . 1 Energy Cycler 1 | . . . . . . . . . . . . . . . . 1 . . . . . Machines Repaired . | . . . . . . . . . . . . . . . . . . . . . . Machines Dismantled . | . . . . . . . . . . . . . . . . . . . . . . Machines Sabotaged . | . . . . . . . . . . . . . . . . . . . . . . Overloaded Fab Kills . | . . . . . . . . . . . . . . . . . . . . . . Hacking | -11 -10 -10 -8 -8 -6 -6 -6 -6 -5 -5 -5 -5 -5 -4 -4 -4 -3 -2 -2 -1 -1 --------- Run | Yrd Mat Sub Rec Scr Fac Low Low Dat Pro Fac Upp Upp Zhi Pro Fac Arm Res Res Qua Acc Com Machines Accessed 101 | . 9 2 11 1 14 . 2 4 . 14 1 . 3 . 12 2 6 4 7 6 3 Terminals 76 | . 8 . 6 . 14 . . . . 12 . . . . 10 1 5 4 7 6 3 Fabricators 2 | . . . . . . . . . . . . . . . 1 1 . . . . . Repair Stations 2 | . . . . . . . . . . 1 . . . . 1 . . . . . . Recycling Units 7 | . 1 . 5 . . . . . . . . . . . . . 1 . . . . Scanalyzers 1 | . . . . . . . . . . 1 . . . . . . . . . . . Garrison Access . | . . . . . . . . . . . . . . . . . . . . . . Total Hacks 315 | . 26 2 25 1 42 . 6 27 . 46 1 . 12 . 42 5 14 10 24 22 10 Successful 194 | . 16 2 17 1 26 . 6 27 . 25 1 . 12 . 21 3 6 4 11 13 3 Failed 118 | . 10 . 8 . 16 . . . . 18 . . . . 21 2 8 6 13 9 7 Catastrophic 15 | . . . . . . . . . . 3 . . . . . . 2 . 5 3 2 Database Lockouts 3 | . . . . . . . . . . 3 . . . . . . . . . . . Manual 184 | . 20 . 16 . 26 . . . . 34 . . . . 24 3 11 9 18 13 10 Terminals 240 | . 25 . 13 . 42 . . . . 41 . . . . 38 3 12 10 24 22 10 Fabricators 4 | . . . . . . . . . . . . . . . 2 2 . . . . . Repair Stations 5 | . . . . . . . . . . 3 . . . . 2 . . . . . . Recycling Units 15 | . 1 . 12 . . . . . . . . . . . . . 2 . . . . Scanalyzers 2 | . . . . . . . . . . 2 . . . . . . . . . . . Garrison Access . | . . . . . . . . . . . . . . . . . . . . . . Terminal Hacks 112 | . 8 2 1 1 14 . 6 27 . 12 1 . 12 . 9 . 3 2 6 8 . Record 21 | . . . . . . . 5 11 . 2 1 . 1 . . . . . . 1 . Part Schematic 12 | . . . . . . . . 9 . . . . 3 . . . . . . . . Robot Schematic 4 | . . . . . . . . 4 . . . . . . . . . . . . . Robot Analysis 4 | . . . . . . . . . . . . . 4 . . . . . . . . Prototype ID Bank 9 | . 1 . 1 . . . . 3 . . . . 4 . . . . . . . . Open Door 2 | . . 1 . . . . 1 . . . . . . . . . . . . . . Level Access Points 2 | . . . . . . . . . . 1 . . . . 1 . . . . . . Branch Access Points 4 | . 1 . . . 1 . . . . 1 . . . . . . 1 . . . . Emergency Access Points 1 | . 1 . . . . . . . . . . . . . . . . . . . . Terminal Index 6 | . 1 . . . 1 . . . . . . . . . 1 . . 1 1 1 . Recycling Unit Index 1 | . 1 . . . . . . . . . . . . . . . . . . . . Alert Level 2 | . . . . . 1 . . . . . . . . . . . . . . 1 . Unreport Threat 25 | . . . . . 4 . . . . 5 . . . . 5 . 2 . 5 4 . Locate Traps 14 | . 1 . . . 7 . . . . 2 . . . . 2 . . 1 . 1 . Hauler Manifests 1 | . 1 . . . . . . . . . . . . . . . . . . . . Zone Layout 2 | . 1 . . . . . . . . 1 . . . . . . . . . . . Proto ID Catalog 2 | . . 1 . 1 . . . . . . . . . . . . . . . . . Fabricator Hacks 4 | . . . . . . . . . . . . . . . 2 2 . . . . . Load Schematic 2 | . . . . . . . . . . . . . . . 1 1 . . . . . Build 2 | . . . . . . . . . . . . . . . 1 1 . . . . . Repair Station Hacks 4 | . . . . . . . . . . 2 . . . . 2 . . . . . . Scan Component 2 | . . . . . . . . . . 1 . . . . 1 . . . . . . Repair 2 | . . . . . . . . . . 1 . . . . 1 . . . . . . Recycling Unit Hacks 7 | . . . 7 . . . . . . . . . . . . . . . . . . Report Inventory 5 | . . . 5 . . . . . . . . . . . . . . . . . . Retrieve Components 2 | . . . 2 . . . . . . . . . . . . . . . . . . Scanalyzer 1 | . . . . . . . . . . 1 . . . . . . . . . . . Retrieve Study 1 | . . . . . . . . . . 1 . . . . . . . . . . . Garrison Access Hacks . | . . . . . . . . . . . . . . . . . . . . . . Unauthorized Hacks 66 | . 8 . 9 . 12 . . . . 10 . . . . 8 1 3 2 5 5 3 Terminals 59 | . 7 . 4 . 12 . . . . 10 . . . . 8 1 2 2 5 5 3 Botnet 58 | . 6 . 4 . 12 . . . . 10 . . . . 8 1 2 2 5 5 3 Sabotage 1 | . 1 . . . . . . . . . . . . . . . . . . . . Fabricators . | . . . . . . . . . . . . . . . . . . . . . . Repair Stations . | . . . . . . . . . . . . . . . . . . . . . . Recycling Units 7 | . 1 . 5 . . . . . . . . . . . . . 1 . . . . Tunnel 6 | . 1 . 5 . . . . . . . . . . . . . . . . . . Fedlink 1 | . . . . . . . . . . . . . . . . . 1 . . . . Scanalyzers . | . . . . . . . . . . . . . . . . . . . . . . Garrison Access . | . . . . . . . . . . . . . . . . . . . . . . Data Cores Recovered 12 | . 1 . . . 1 . . . . 2 . . . . 2 1 . 1 1 1 2 Used 3 | . . . . . . . . . . . . . . . . 1 . 1 . . 1 Hacking Detections 71 | . 8 . 6 . 12 . . . . 10 . . . . 10 2 5 4 5 6 3 Full Trace Events 5 | . 1 . . . . . . . . . . . . . 3 1 . . . . . Feedback Events 1 | . . . . . . . . . . . . . . . 1 . . . . . . Hackware Fried 1 | . . . . . . . . . . . . . . . 1 . . . . . . Feedback Blocked . | . . . . . . . . . . . . . . . . . . . . . . Robot Schematics Acquired 4 | . . . . . . . . 4 . . . . . . . . . . . . . Robots Built 2 | . . . . . . . . . . . . . . . . 2 . . . . . Authchips . | . . . . . . . . . . . . . . . . . . . . . . Time 152 | . . . . . . . . . . . . . . . . 152 . . . . . Total Robot Build Rating 10 | . . . . . . . . . . . . . . . . 10 . . . . . Part Schematics Acquired 12 | . . . . . . . . 9 . . . . 3 . . . . . . . . Parts Built 1 | . . . . . . . . . . . . . . . 1 . . . . . . Authchips . | . . . . . . . . . . . . . . . . . . . . . . Time 76 | . . . . . . . . . . . . . . . 76 . . . . . . Total Part Build Rating 5 | . . . . . . . . . . . . . . . 5 . . . . . . Part Studies Acquired 1 | . . . . . . . . . . 1 . . . . . . . . . . . Parts Repaired 2 | . . . . . . . . . . 1 . . . . 1 . . . . . . Time 50 | . . . . . . . . . . 25 . . . . 25 . . . . . . Parts Recycled . | . . . . . . . . . . . . . . . . . . . . . . Recycled Matter . | . . . . . . . . . . . . . . . . . . . . . . Retrieved Matter . | . . . . . . . . . . . . . . . . . . . . . . Retrieved Components 6 | . . . 6 . . . . . . . . . . . . . . . . . . Parts Scanalyzed . | . . . . . . . . . . . . . . . . . . . . . . Part Schematics Acquired . | . . . . . . . . . . . . . . . . . . . . . . Parts Damaged . | . . . . . . . . . . . . . . . . . . . . . . Bothacking | -11 -10 -10 -8 -8 -6 -6 -6 -6 -5 -5 -5 -5 -5 -4 -4 -4 -3 -2 -2 -1 -1 ------------ Run | Yrd Mat Sub Rec Scr Fac Low Low Dat Pro Fac Upp Upp Zhi Pro Fac Arm Res Res Qua Acc Com Used RIF Installer . | . . . . . . . . . . . . . . . . . . . . . . Robots Hacked . | . . . . . . . . . . . . . . . . . . . . . . Non-combat . | . . . . . . . . . . . . . . . . . . . . . . Combat . | . . . . . . . . . . . . . . . . . . . . . . Robot Hacks Applied . | . . . . . . . . . . . . . . . . . . . . . . Relay Couplers Released 3 | . . . . . . . . . . 2 . . . . 1 . . . . . . Machine Destruction 2 | . . . . . . . . . . 2 . . . . . . . . . . . Programmers 1 | . . . . . . . . . . . . . . . 1 . . . . . . Fabnet Peak Effective % . | . . . . . . . . . . . . . . . . . . . . . . Robots Rewired 9 | . . . 5 . . 2 . . . . . . . 2 . . . . . . . Allies Hacked 1 | . . . . . 1 . . . . . . . . . . . . . . . . Hacks Repelled . | . . . . . . . . . . . . . . . . . . . . . . Allies | -11 -10 -10 -8 -8 -6 -6 -6 -6 -5 -5 -5 -5 -5 -4 -4 -4 -3 -2 -2 -1 -1 -------- Run | Yrd Mat Sub Rec Scr Fac Low Low Dat Pro Fac Upp Upp Zhi Pro Fac Arm Res Res Qua Acc Com Total Allies 11 | . . . 5 . . 2 . . . . . . . 2 . 2 . . . . . Largest Group 4 | . . . 4 4 4 2 1 1 1 . . . . 2 2 2 . . . . . Highest-Rated Group 97 | . . . 93 86 86 50 25 25 25 . . . . 97 97 82 . . . . . Highest-Rated Ally 49 | . . . 34 27 27 25 25 25 25 . . . . 49 49 41 . . . . . Total Orders . | . . . . . . . . . . . . . . . . . . . . . . Ally Attacks 94 | . . . 18 . 17 12 . . 2 . . . . 6 19 20 . . . . . Total Damage 2765 | . . . 540 . 186 401 . . . . . . . 171 626 841 . . . . . Kills 24 | . . . 11 . 2 4 . . . . . . . 1 3 3 . . . . . Allies Corrupted . | . . . . . . . . . . . . . . . . . . . . . . Allies Melted . | . . . . . . . . . . . . . . . . . . . . . . Intel | -11 -10 -10 -8 -8 -6 -6 -6 -6 -5 -5 -5 -5 -5 -4 -4 -4 -3 -2 -2 -1 -1 ------- Run | Yrd Mat Sub Rec Scr Fac Low Low Dat Pro Fac Upp Upp Zhi Pro Fac Arm Res Res Qua Acc Com Active Infowar (turns) 14892 | . . 187 997 1363 3085 121 . . 973 2125 1542 1498 175 1531 1295 . . . . . . Optics 187 | . . 187 . . . . . . . . . . . . . . . . . . . Jamming 9139 | . . . . . . . . . 973 2125 1542 1498 175 1531 1295 . . . . . . ECM 5566 | . . . 997 1363 3085 121 . . . . . . . . . . . . . . . Robot Analysis Total 4 | . . . . . . . . . . . . . 4 . . . . . . . . Derelict Logs Recovered 10 | . . . . . . 3 2 . 1 . 1 1 . 2 . . . . . . . Drone Launches . | . . . . . . . . . . . . . . . . . . . . . . Drone Recoveries . | . . . . . . . . . . . . . . . . . . . . . . Exploration | -11 -10 -10 -8 -8 -6 -6 -6 -6 -5 -5 -5 -5 -5 -4 -4 -4 -3 -2 -2 -1 -1 ------------- Run | Yrd Mat Sub Rec Scr Fac Low Low Dat Pro Fac Upp Upp Zhi Pro Fac Arm Res Res Qua Acc Com Turns Passed 35674 | 57 1259 1839 2476 1363 3600 1669 1665 121 1141 2125 1542 1498 188 1531 2031 482 2871 2432 934 2709 2141 Spaces Moved 23847 | 47 827 1263 1627 1043 2394 1164 1282 97 831 1391 1241 1194 159 1140 1291 239 1854 1398 624 1622 1119 Core 11 | 11 . . . . . . . . . . . . . . . . . . . . . Treads . | . . . . . . . . . . . . . . . . . . . . . . Legs 23836 | 36 827 1263 1627 1043 2394 1164 1282 97 831 1391 1241 1194 159 1140 1291 239 1854 1398 624 1622 1119 Wheels . | . . . . . . . . . . . . . . . . . . . . . . Hover . | . . . . . . . . . . . . . . . . . . . . . . Flight . | . . . . . . . . . . . . . . . . . . . . . . Fastest Speed 50 | 50 120 120 126 130 127 127 126 126 126 120 115 113 113 113 108 111 121 120 127 127 127 Average Speed 123 | 103 120 129 131 130 127 127 126 126 126 123 118 114 113 113 111 116 124 125 127 127 127 Slowest Speed 210 | 120 120 130 200 205 200 127 127 126 126 127 120 118 113 113 177 178 210 186 127 127 127 Overloaded Moves . | . . . . . . . . . . . . . . . . . . . . . . Propulsion Burnouts . | . . . . . . . . . . . . . . . . . . . . . . Robots Hopped . | . . . . . . . . . . . . . . . . . . . . . . Potential Cave-ins 2 | . . . . . . . . . . . . . . . . . . . 2 . . Cave-ins Triggered . | . . . . . . . . . . . . . . . . . . . . . . Exploration Rate (%) 62 | 4 99 50 98 85 56 95 98 73 85 36 98 98 60 98 37 18 25 36 53 39 34 Regions Visited 21 Branch Regions 14 Pre-discovered Areas 12 | . 1 . 5 . . 1 1 1 1 . 1 . . 1 . . . . . . . Known Exits Taken 12 | . . . . . 1 . . . . 1 1 1 1 1 1 1 1 1 1 1 . Unknown Exits Taken 9 | 1 1 1 1 1 . 1 1 1 1 . . . . . . . . . . . . Scrap Searched 32 | . . 10 . 5 . 3 2 . 3 . 4 3 . 2 . . . . . . . Spaces Dug 24 | . . . . . 9 1 . . . 1 . 2 . . 1 . . 3 3 1 3 Terrain Destroyed 949 | . 40 1 11 . 39 31 7 . 16 47 9 30 . 27 85 42 86 114 42 90 232 Melee . | . . . . . . . . . . . . . . . . . . . . . . Projectile 785 | . . 1 11 . 39 31 7 . 16 47 9 30 . 27 85 42 86 114 42 90 108 AOE 164 | . 40 . . . . . . . . . . . . . . . . . . . 124 Terrain Rammed . | . . . . . . . . . . . . . . . . . . . . . . Walls Destroyed . | . . . . . . . . . . . . . . . . . . . . . . Machines Disabled . | . . . . . . . . . . . . . . . . . . . . . . Actions | -11 -10 -10 -8 -8 -6 -6 -6 -6 -5 -5 -5 -5 -5 -4 -4 -4 -3 -2 -2 -1 -1 --------- Run | Yrd Mat Sub Rec Scr Fac Low Low Dat Pro Fac Upp Upp Zhi Pro Fac Arm Res Res Qua Acc Com Total 27788 | 53 1011 1376 1896 1049 2799 1278 1314 96 874 1692 1289 1263 167 1329 1679 338 2256 1799 692 2007 1531 Wait 1921 | . 116 27 85 . 265 4 14 . . 193 16 9 . 124 265 34 277 182 17 192 101 Move 23825 | 46 826 1262 1626 1042 2393 1163 1281 96 830 1390 1240 1193 158 1139 1290 238 1853 1397 623 1621 1118 Hop . | . . . . . . . . . . . . . . . . . . . . . . Pick Up 26 | 1 1 1 2 1 1 1 1 . 1 2 1 . 1 2 5 . 1 1 . 2 1 Fast Attach 89 | 5 6 8 12 2 8 2 1 . . 3 2 1 4 . 7 3 13 9 1 1 1 Attach 16 | . . . 2 . 2 1 . . 1 2 . . . 2 3 . 1 1 . 1 . Detach 25 | . 2 . 1 2 3 3 . . . 2 2 . . . 2 1 3 3 1 . . Swap 15 | . . 4 1 . 1 . . . . . . . . . 2 . 1 3 . . 3 Drop 74 | 1 3 9 8 2 6 2 1 . . 3 2 1 4 1 5 4 12 8 1 . 1 Fire 1040 | . 41 51 46 . 85 43 8 . 25 52 12 36 . 27 82 47 63 110 31 126 155 Melee . | . . . . . . . . . . . . . . . . . . . . . . Ram . | . . . . . . . . . . . . . . . . . . . . . . Kick 17 | . 1 . 4 . 3 . 1 . . 2 . . . . 1 . 1 1 1 1 1 Crush . | . . . . . . . . . . . . . . . . . . . . . . Escape Stasis 46 | . . . . . . . . . . . . . . . . . . . . 10 36 Rewire 78 | . . . 46 . 1 10 . . . . . . . 21 . . . . . . . Trap . | . . . . . . . . . . . . . . . . . . . . . . Miscellaneous 616 | . 15 14 63 . 31 49 7 . 17 43 14 23 . 13 17 11 31 84 17 53 114 Route ------- -11/Scrapyard -10/Materials (discovered 6 exits: [*Mat x3] / *Min x2 / *Sub) -10/Subcaves (discovered 3 exits: [*Mat] / *Rec / *Scr) -8/Recycling (discovered 2 exits: *Fac / *Scr) -8/Scraptown (discovered 2 exits: *Fac x2) -6/Factory (discovered 3 exits: *Fac / *Low x2) -6/Lower Caves -6/Lower Caves (discovered 2 exits: *Fac / *Dat) -6/Data Miner -5/Proximity Caves -5/Factory (discovered 6 exits: *Fac x4 / *Upp x2) -5/Upper Caves -5/Upper Caves (discovered 2 exits: *Fac / *Zhi) -5/Zhirov -4/Proximity Caves -4/Factory (discovered 6 exits: *Res x4 / Upp / *Arm) -4/Armory -3/Research (discovered 3 exits: *Res / Tes x2) -2/Research -2/Quarantine -1/Access -1/Command To Epsilon Eridani History --------- Turn | Location | Event 2 | -11/Scrapyard | Met Revision 17 2 | -11/Scrapyard | Upgraded with Propulsion slot (x1) 2 | -11/Scrapyard | Upgraded with Weapon slot (x1) 16 | -11/Scrapyard | Discovered new exit (range 16) 57 | -11/Scrapyard | Upgraded with Utility slot (x1) 58 | -11/Scrapyard | Entered Materials 267 | -10/Materials | Discovered new exit (range 5) 311 | -10/Materials | Build established: Mutant 337 | -10/Materials | Discovered new exit (range 9) 552 | -10/Materials | Discovered new exit (range 9) 585 | -10/Materials | Discovered new exit (range 13) 590 | -10/Materials | Identified exit to Mines 1067 | -10/Materials | Discovered new exit (range 4) 1137 | -10/Materials | Reached level 2 1303 | -10/Materials | Discovered new exit (range 10) 1317 | -10/Materials | Entered Subcaves 1318 | -10/Subcaves | Approached by a straggling Scientist 1340 | -10/Subcaves | Ambushed by Subdwellers from Twisted Machinery 1347 | -10/Subcaves | A swath of the cavern ceiling suddenly collapsed 1455 | -10/Subcaves | Reached level 3 1477 | -10/Subcaves | Core integrity fell below 50% 1483 | -10/Subcaves | Discovered new exit (range 9) 1489 | -10/Subcaves | Upgraded with Weapon slot (x1) 1675 | -10/Subcaves | Discovered new exit (range 6) 1796 | -10/Subcaves | Build established: Gunner 1880 | -10/Subcaves | Shifting Twisted Machinery released Flamer 1882 | -10/Subcaves | Shifting Twisted Machinery released Flamer 2295 | -10/Subcaves | Disturbed a concealed Subdweller 2359 | -10/Subcaves | Shifting Twisted Machinery released Hvy. Riot Gun 2371 | -10/Subcaves | Shifting Twisted Machinery released Mak. Spear 2432 | -10/Subcaves | Scientist uncovered a shortcut to Scraptown 2474 | -10/Subcaves | Build established: Derelict-Gunner 2536 | -10/Subcaves | Visited 4L-MR0's lab 2563 | -10/Subcaves | Found Powered Cannon 2565 | -10/Subcaves | Attached Powered Cannon, gained temporary slot: Power 2850 | -10/Subcaves | Build established: Gunner 3156 | -10/Subcaves | Entered Recycling 3242 | -8/Recycling | Scanned before Scraplab entrance 3280 | -8/Recycling | Entered Scraplab 3392 | -8/Recycling | Reached level 4 3417 | -8/Recycling | Upgraded with Power slot (x1) 3417 | -8/Recycling | Upgraded with Propulsion slot (x1) 3417 | -8/Recycling | Upgraded with Utility slot (x1) 3417 | -8/Recycling | Upgraded with Weapon slot (x1) 3578 | -8/Recycling | Discovered new exit (range 15) 4434 | -8/Recycling | Reached level 5 4619 | -8/Recycling | Upgraded with Utility slot (x1) 4751 | -8/Recycling | Build established: Commander-Gunner 5376 | -8/Recycling | Reached level 6 5409 | -8/Recycling | Upgraded with Utility slot (x1) 5609 | -8/Recycling | Discovered new exit (range 4) 5632 | -8/Recycling | Entered Scraptown 5632 | -8/Scraptown | Accompanied by 4 allies 5715 | -8/Scraptown | Build established: Commander-Tank 5909 | -8/Scraptown | Discovered new exit (range 11) 6021 | -8/Scraptown | Visited TADAMA 6055 | -8/Scraptown | Visited Fellowship of the Rings 6091 | -8/Scraptown | Visited Symbiants 6113 | -8/Scraptown | Visited CR-KLE's Repair Center 6366 | -8/Scraptown | Visited UFD Registry 6366 | -8/Scraptown | Registered with UFD as "Matterforce" 6408 | -8/Scraptown | Visited Junk Repository 6486 | -8/Scraptown | Visited Science Testing Area 6514 | -8/Scraptown | Visited Botcube Research 6613 | -8/Scraptown | Visited Abandonware Association 6635 | -8/Scraptown | Visited DA-N13 Charitable Foundation 6657 | -8/Scraptown | Found DCF Scrap (28 items) 6699 | -8/Scraptown | Visited Science Guys 6769 | -8/Scraptown | Visited Research Penetration Think Tank 6798 | -8/Scraptown | Visited Supply Room 6833 | -8/Scraptown | Visited Infowarlord's Domain 6986 | -8/Scraptown | Discovered new exit (range 5) 6995 | -8/Scraptown | Entered Factory 6995 | -6/Factory | Accompanied by 4 allies 6997 | -6/Factory | Reached level 7 6998 | -6/Factory | Upgraded with Propulsion slot (x1) 7353 | -6/Factory | Garrison activated, responded to threat 7634 | -6/Factory | Build established: Tank 7650 | -6/Factory | Identified exit to Lower Caves 7789 | -6/Factory | Reached level 8 8541 | -6/Factory | Build established: Hacker-Tank 8759 | -6/Factory | Reached level 9 9172 | -6/Factory | Discovered new exit (range 8) 9931 | -6/Factory | Reached level 10 9954 | -6/Factory | Garrison activated, responded to threat 10243 | -6/Factory | Build established: Hacker-Gunner 10595 | -6/Factory | Entered Lower Caves 10599 | -6/Lower Caves | Learned Factory interactive machine intel 10689 | -6/Lower Caves | Reached level 11 10717 | -6/Lower Caves | Ambushed by research squad 10981 | -6/Lower Caves | Learned Factory garrison access intel 11237 | -6/Lower Caves | Attacked by a faux Warlord 11431 | -6/Lower Caves | Encountered a Warlord checkpoint 11570 | -6/Lower Caves | Build established: Hacker-Tank 12028 | -6/Lower Caves | Discovered new exit (range 12) 12060 | -6/Lower Caves | Attracted the attention of an 0b10 checkpoint 12078 | -6/Lower Caves | Reached level 12 12208 | -6/Lower Caves | Found Alien Artifact 12208 | -6/Lower Caves | Identified Core Expander 12208 | -6/Lower Caves | Installed Core Expander, added new Propulsion slot 12264 | -6/Lower Caves | Entered another Lower Caves area 12264 | -6/Lower Caves | Accompanied by 1 ally 12582 | -6/Lower Caves | Discovered new exit (range 5) 12610 | -6/Lower Caves | Learned 4 Factory zone layouts 13492 | -6/Lower Caves | Encountered a Warlord checkpoint 13501 | -6/Lower Caves | Discovered new exit (range 7) 13740 | -6/Lower Caves | Entered an active Warlord outpost 13765 | -6/Lower Caves | Learned Research garrison access intel 13765 | -6/Lower Caves | Learned Research terminal intel 13765 | -6/Lower Caves | Learned Extension trap positions 13929 | -6/Lower Caves | Entered Data Miner 13929 | -6/Data Miner | Accompanied by 1 ally 13929 | -6/Data Miner | Discovered new exit (range 6) 13931 | -6/Data Miner | Reached level 13 13950 | -6/Data Miner | Met Data Miner 13987 | -6/Data Miner | Acquired the access code to Warlord's prototype stash 13987 | -6/Data Miner | Learned location of Section 7 (-2) 14009 | -6/Data Miner | Received God Mode back door access code from Data Miner 14050 | -6/Data Miner | Entered Proximity Caves 14050 | -5/Proximity Caves | Accompanied by 1 ally 14092 | -5/Proximity Caves | Reached level 14 14218 | -5/Proximity Caves | Upgraded with Utility slot (x1) 14233 | -5/Proximity Caves | Attracted the attention of an 0b10 checkpoint 14261 | -5/Proximity Caves | Learned location of Armory (-4) 14458 | -5/Proximity Caves | Spotted B-75 Beast 14483 | -5/Proximity Caves | Destroyed B-75 Beast 14718 | -5/Proximity Caves | Discovered new exit (range 18) 15191 | -5/Proximity Caves | Entered Factory 15193 | -5/Factory | Loaded intel: 53 interactive machine locations 15193 | -5/Factory | Reached level 15 15194 | -5/Factory | Loaded intel: 4 garrison access locations 15223 | -5/Factory | Upgraded with Weapon slot (x1) 15341 | -5/Factory | Reached level 16 15359 | -5/Factory | Incoming assault squad redirected 15646 | -5/Factory | Discovered new exit (range 12) 15847 | -5/Factory | Reached level 17 16068 | -5/Factory | Repaired Imp. Heavy Armor Plating 16194 | -5/Factory | Upgraded with Utility slot (x1) 16259 | -5/Factory | Discovered new exit (range 5) 16263 | -5/Factory | Identified exit to Factory 16500 | -5/Factory | Build established: Hacker-Skirmisher 16560 | -5/Factory | Central database locked down 16621 | -5/Factory | Reached level 18 16811 | -5/Factory | Identified exit to Upper Caves 16851 | -5/Factory | Central database locked down 16851 | -5/Factory | Central database locked down 17316 | -5/Factory | Entered Upper Caves 17318 | -5/Upper Caves | Attracted the attention of an 0b10 checkpoint 17902 | -5/Upper Caves | Discovered new exit (range 5) 17908 | -5/Upper Caves | Identified exit to Upper Caves 18160 | -5/Upper Caves | Encountered a Warlord checkpoint 18537 | -5/Upper Caves | Reached level 19 18858 | -5/Upper Caves | Entered another Upper Caves area 18938 | -5/Upper Caves | Learned location of 1 exit from Factory 18967 | -5/Upper Caves | Encountered a Warlord checkpoint 19080 | -5/Upper Caves | Discovered exit to Factory (range 6) 19229 | -5/Upper Caves | Attracted the attention of an 0b10 checkpoint 19380 | -5/Upper Caves | Reached level 20 19421 | -5/Upper Caves | Attracted the attention of an 0b10 outpost 19466 | -5/Upper Caves | Destroyed 9 combat bots 19854 | -5/Upper Caves | Discovered new exit (range 11) 19868 | -5/Upper Caves | Identified exit to Zhirov 20238 | -5/Upper Caves | Ambushed by wild Derelicts 20356 | -5/Upper Caves | Entered Zhirov 20356 | -5/Zhirov | Discovered new exit (range 3) 20377 | -5/Zhirov | Met Zhirov 20414 | -5/Zhirov | Zhirov requested help retrieving the SGEMP Prototype 20437 | -5/Zhirov | Found Alien Artifact 20437 | -5/Zhirov | Identified Integrated Reactor 20437 | -5/Zhirov | Installed Integrated Reactor, increased core energy generation (+10) 20543 | -5/Zhirov | Identified exit to Proximity Caves 20544 | -5/Zhirov | Entered Proximity Caves 20544 | -4/Proximity Caves | Reached level 21 20548 | -4/Proximity Caves | Upgraded with Utility slot (x1) 20650 | -4/Proximity Caves | Reached level 22 20703 | -4/Proximity Caves | Spotter reported a threat 20757 | -4/Proximity Caves | Learned location of Testing (-3) 20918 | -4/Proximity Caves | Attracted the attention of an 0b10 outpost 20993 | -4/Proximity Caves | Spotter reported a threat 21007 | -4/Proximity Caves | Spotter reported a threat 22075 | -4/Proximity Caves | Entered Factory 22075 | -4/Factory | Accompanied by 2 allies 22076 | -4/Factory | Identified exit to Upper Caves 22077 | -4/Factory | Reached level 23 22198 | -4/Factory | Discovered new exit (range 4) 22202 | -4/Factory | Identified exit to Research 22325 | -4/Factory | Search patrols dispatched 22413 | -4/Factory | Discovered exit to Research (range 15) 22471 | -4/Factory | Reached level 24 22515 | -4/Factory | Core integrity fell below 50% 22548 | -4/Factory | Destroyed 7 combat bots 22677 | -4/Factory | Incoming investigation squad redirected 22732 | -4/Factory | Fabricated Lgt. Regenerative Plating (x1) 22806 | -4/Factory | Upgraded with Utility slot (x1) 22806 | -4/Factory | Upgraded with Weapon slot (x1) 23076 | -4/Factory | Adv. Hacking Suite fried by hacking feedback 23105 | -4/Factory | Garrison activated, responded to threat 23121 | -4/Factory | Build established: Hacker-Executioner 23229 | -4/Factory | Repaired Imp. Heavy Armor Plating 23848 | -4/Factory | Discovered new exit (range 12) 23912 | -4/Factory | Reached level 25 24011 | -4/Factory | Destroyed 11 combat bots 24105 | -4/Factory | Identified exit to Armory 24106 | -4/Factory | Entered Armory 24396 | -4/Armory | Fabricated H-66 Slayer? 24408 | -4/Armory | Reached level 26 24451 | -4/Armory | Destroyed 7 combat bots 24505 | -4/Armory | Energy Cycler disabled 24553 | -4/Armory | Discovered exit to Research (range 18) 24588 | -4/Armory | Entered Research 24589 | -3/Research | Loaded intel: 19 terminal locations 24590 | -3/Research | Loaded intel: 4 garrison access locations 24590 | -3/Research | Reached level 27 24630 | -3/Research | Discovered new exit (range 12) 24646 | -3/Research | Identified exit to Research 25181 | -3/Research | Core integrity fell below 50% 25743 | -3/Research | Identified exit to Testing 26364 | -3/Research | Reached level 28 26430 | -3/Research | Upgraded with Propulsion slot (x1) 26760 | -3/Research | Unchained authorized (GL-D0S) 26921 | -3/Research | Garrison activated, responded to threat 27240 | -3/Research | Loaded intel: 5 recycling unit locations 27459 | -3/Research | Entered another Research area 27461 | -2/Research | Reached level 29 27627 | -2/Research | Unchained authorized (GL-D0S) 27699 | -2/Research | Reached level 30 28312 | -2/Research | Spotted B-90 Cyclops 28662 | -2/Research | Reached level 31 28709 | -2/Research | First assault squad dispatched 28876 | -2/Research | Destroyed B-90 Cyclops 28951 | -2/Research | Upgraded with Power slot (x1) 29319 | -2/Research | Cargo convoy interrupted 29568 | -2/Research | Reached level 32 29621 | -2/Research | Destroyed 7 combat bots 29809 | -2/Research | High security lockdown imminent 29826 | -2/Research | Discovered new exit (range 13) 29826 | -2/Research | Spotted B-90 Cyclops 29834 | -2/Research | Destroyed B-90 Cyclops 29880 | -2/Research | Destroyed 15 combat bots 29888 | -2/Research | Identified exit to Quarantine 29889 | -2/Research | High security lockdown engaged 29891 | -2/Research | Entered Quarantine 30252 | -2/Quarantine | Discovered new exit (range 12) 30266 | -2/Quarantine | Identified exit to Access 30332 | -2/Quarantine | Reached level 33 30825 | -2/Quarantine | Entered Access 31047 | -1/Access | Unchained authorized (GL-D0S) 31326 | -1/Access | Reached level 34 31366 | -1/Access | Upgraded with Utility slot (x1) 31705 | -1/Access | Spotted B-99 Colossus 31764 | -1/Access | Destroyed 7 combat bots 31783 | -1/Access | Destroyed B-99 Colossus 31847 | -1/Access | Destroyed 8 combat bots 32315 | -1/Access | Reached level 35 33325 | -1/Access | First assault squad dispatched 33523 | -1/Access | Spotted B-99 Colossus 33523 | -1/Access | Spotted B-99 Colossus 33530 | -1/Access | Discovered new exit (range 3) 33532 | -1/Access | Identified exit to Command 33534 | -1/Access | Entered Command 33611 | -1/Command | Reached level 36 34119 | -1/Command | Found Gamma Bomb Array 34154 | -1/Command | Phase Generator disabled 34284 | -1/Command | First assault squad dispatched 34406 | -1/Command | Destroyed 9 combat bots 34575 | -1/Command | Spotted Alpha 7 34666 | -1/Command | Destroyed Alpha 7 34738 | -1/Command | Destroyed 7 combat bots 34960 | -1/Command | Spotted B-99 Colossus 35057 | -1/Command | Destroyed B-99 Colossus 35343 | -1/Command | High security lockdown imminent 35357 | -1/Command | Spotted Striker 35359 | -1/Command | Spotted Alpha 7 35362 | -1/Command | Spotted Executioner 35367 | -1/Command | Destroyed Striker 35373 | -1/Command | Destroyed Executioner 35407 | -1/Command | Core integrity fell below 50% 35409 | -1/Command | Reached level 37 35423 | -1/Command | High security lockdown engaged 35444 | -1/Command | Destroyed Alpha 7 35465 | -1/Command | Destroyed 34 combat bots 35517 | -1/Command | Spotted Striker 35518 | -1/Command | Spotted Executioner 35519 | -1/Command | Spotted Executioner 35528 | -1/Command | Destroyed Striker 35531 | -1/Command | Destroyed Executioner 35537 | -1/Command | Destroyed Executioner 35547 | -1/Command | Spotted B-99 Colossus 35551 | -1/Command | Spotted Executioner 35553 | -1/Command | Spotted B-99 Colossus 35563 | -1/Command | Destroyed Executioner 35569 | -1/Command | Destroyed B-99 Colossus 35573 | -1/Command | Destroyed B-99 Colossus 35595 | -1/Command | Scanned by Researcher 35599 | -1/Command | Destroyed Investigator 35630 | -1/Command | Destroyed 14 combat bots 35644 | -1/Command | Discovered new exit (range 13) 35670 | -1/Command | Identified exit to Surface 35675 | *** | Escaped! Last Messages --------------- 35644_ EXIT=FOUND 35645_ Field strength at 84. 35646_ Field strength at 68. 35647_ Field strength at 52. 35648_ Field strength at 36. 35649_ Field strength at 20. 35650_ Field strength at 4. 35651_ Stasis field depleted. 35656_ The Access Shell folds into the floor. 35661_ Field strength at 84. 35662_ Field strength at 68. 35663_ Field strength at 52. 35664_ Field strength at 36. 35665_ Field strength at 20. 35666_ Field strength at 4. 35667_ Stasis field depleted. 35670_ EXIT=IDENTIFIED: SURFACE 35672_ System corrupted: Matter fused (-10). 35673_ Acquired 10 matter. [Achievement: Leg Day] Map ----- +----------------------------------------------------+ | ## " ## + #??????????????????? | | ?### "# ####### #??????????????????? | | ?### ## ######## ##??????????????????? | | ?#"# [ ## # # #???????????????????? | | ## ![= # ! # + #??????????????????## | | #" %= "=[ # # #?????????????????## | | ## %%! [ " ! # # #????????????????## # | | ?# %!= [%[#! # /# #????????????????# # | | ## !!== ######## #????????????????# | | # %!# ######## #???????????????## | | #" %!% # # # #???????????????# | | ##= / " # # #######"########## | | %#%/% # " + | | !=%=%" ### #!! #"############## ### | | %%!=% #?# #!! # #????????????# #?# | | =[[%%[##?# #!! # #????????????# #?# # | | %=%%##??# #####"####????######??# #?## | | %!!%=#??##########??? #???????# ## ##?## | | %% %=%##???????????????###???????# # #??## | | [% %"#??????????##############??# !!! + " #???? | | %%== !"##?????????# #??# !!! # #???? | | =%%% ! ########### #??# !! !##+#####? | | %=[%=% ;;; # ;[#[#! ^ #??# ?# ! #? | | %*[=%= ; ^^^^^=^^%* #??######?# #? | | =%%=%! /^^ *%^=* #?????????# #? | | ==%*/ / ^^ !!! "@ #?????????# #? | | = *= / ^^ [[!! ^ "" #?????????# #? | | =! C ^^^]= ]%= #?????????# #? | | =! ! #^^^^ [ =% #?????????########? | | !" ###!#! ! %! ^^ #?????????????????? | | " #?#### ; #?????????????????? | | ###????###### #?????????????????? | | =* #???????????##############?????????????????? | | =* #??????????????????????????????????????????? | | ** #??????????????????????????????????????????? | | #??????????????????????????????????????????? | | #??????????????????????????????????????????? | | ??????????????????????????????????????????? | | #######??????????????????????????????????????????? | | ?????????????????????????????????????????????????? | | ?????????????????????????????????????????????????? | | ?????????????????????????????????????????????????? | | ?????????????????????????????????????????????????? | | ?????????????????????????????????????????????????? | | ?????????????????????????????????????????????????? | | ?????????????????????????????????????????????????? | | ?????????????????????????????????????????????????? | | ?????????????????????????????????????????????????? | | ?????????????????????????????????????????????????? | | ?????????????????????????????????????????????????? | +----------------------------------------------------+ Best States ------------- Heat Dissipation 109 Energy Generation 107 Energy Capacity 1130 Matter Stores 400 Matter Capacity 400 Sight Range 21 Robot Scan Range 20 Terrain Scan Density 10 ECM Strength 2 Jamming Range 14 Base Temperature (-) 200 Corruption Containment 12 Corruption Block 8 Armor Coverage 975 Resistance: KI 20 Resistance: TH 10 Resistance: EM 15 Phase Shifting 15 Evasion (%) 97 Targeting Accuracy 5 Offensive Hacking 39 Defensive Hacking 25 Item Schematics ----------------- Force Lance | -6/Data Miner | Free Antigrav Array | -6/Data Miner | Free Adv. Cryofiber Web | -6/Data Miner | Free Centrium Wheel | -6/Data Miner | Free Neutron Cannon | -6/Data Miner | Free Prc. Matter Filter | -6/Data Miner | Free Enh. Armored Leg | -6/Data Miner | Free Lgt. Regenerative Plating | -6/Data Miner | Free Combat Drone Bay | -6/Data Miner | Free Exp. Heat Sink | -5/Zhirov | Free Exp. Optical Array | -5/Zhirov | Free Imp. Arc Thrower | -5/Zhirov | Free Robot Schematics ------------------ H-66 Slayer | -6/Data Miner | Free G-50 Soldier | -6/Data Miner | Free S-27 Virus | -6/Data Miner | Free B-48 Gladiator | -6/Data Miner | Free Fabricated ------------ Lgt. Regenerative Plating | x1 | -4/Factory H-66 Slayer | x2 | -4/Armory Repaired ---------- Imp. Heavy Armor Plating | 18% | -5/Factory Imp. Heavy Armor Plating | 24% | -4/Factory Studied --------- Flexi-carbon Leg | -5/Factory | Hacked Alien Tech Used ----------------- Core Expander Integrated Reactor Achievements -------------- Botjacking Bumper Bots Civilization 2243 Construction Begets Destruction DATA ERROR: Steam Global Achievement% Equal Opportunity Bot Ew, Corruption For Emergencies Only Heavy Suspicion Hot Stuff I Have A Map? I Laugh At Your Crits Into The Breach Item+ Jackpot Leg Day Look Less Dangerous Next Time Mistaken Identity Network Effect Nice Directions, Buddy Organ Harvest Overwhelming Physics Protects Spot Them First Suspicious The Better Part Of Valor You Again You May Approach The Wall Challenges ------------ None RPGLIKE | -11 -10 -10 -8 -8 -6 -6 -6 -6 -5 -5 -5 -5 -5 -4 -4 -4 -3 -2 -2 -1 -1 --------- Run | Yrd Mat Sub Rec Scr Fac Low Low Dat Pro Fac Upp Upp Zhi Pro Fac Arm Res Res Qua Acc Com Levels Raised 36 | . 1 1 3 . 4 2 . 1 1 4 1 1 . 2 3 1 2 4 1 2 2 XP Earned 57511 | 3000 1980 1500 4152 650 5870 2506 900 650 2150 5630 1250 2231 453 2600 4091 1427 3459 5879 903 3454 2776 XP Spent 56725 | 2750 . 1280 6350 . 6025 1550 . . 1700 7300 510 2100 . 2300 7005 1560 2500 3500 2600 3325 4370 Upgrades 112 | 7 . 9 12 . 14 5 . . 1 12 3 2 . 1 14 6 2 5 2 3 14 Power Slot 2 | . . . 1 . . . . . . . . . . . . . . 1 . . . Propulsion Slot 4 | 1 . . 1 . 1 . . . . . . . . . . . 1 . . . . Utility Slot 9 | 1 . . 3 . . . . . 1 1 . . . 1 1 . . . . 1 . Weapon Slot 5 | 1 . 1 1 . . . . . . 1 . . . . 1 . . . . . . Core Integrity 28 | . . 8 . . . . . . . . . . . . 11 . . . . . 9 Heat Dissipation 14 | . . . 5 . . . . . . . 3 . . . . 6 . . . . . Energy Generation 3 | . . . . . . . . . . . . . . . . . . . . . 3 Energy Storage 2 | . . . . . . . . . . . . . . . . . . . . . 2 Matter Storage 2 | . . . . . . . . . . . . . . . . . . . . 2 . Mass Support 1 | 1 . . . . . . . . . . . . . . . . . . . . . Inventory Capacity 1 | 1 . . . . . . . . . . . . . . . . . . . . . Sight Range 3 | . . . . . 3 . . . . . . . . . . . . . . . . Sensor Range 10 | . . . . . 3 . . . . 7 . . . . . . . . . . . Ranged Accuracy 9 | 2 . . . . 3 . . . . 1 . 2 . . . . . 1 . . . Hack Attack % 6 | . . . 1 . 2 . . . . 1 . . . . 1 . . . 1 . . Hack Defense % 5 | . . . . . 2 . . . . 1 . . . . . . 1 . 1 . . KI Resistance % 3 | . . . . . . 3 . . . . . . . . . . . . . . . TH Resistance % 2 | . . . . . . 2 . . . . . . . . . . . . . . . KI Damage % 3 | . . . . . . . . . . . . . . . . . . 3 . . . Protomatter Created 6398 | . 128 122 576 . 174 230 49 . 71 288 101 220 . 95 128 78 319 1237 228 576 1778 Integrity Restored 13005 | . 277 306 1344 . 647 1053 147 . 328 845 300 470 . 285 351 207 669 1828 369 1179 2400 Core 9795 | . 254 306 557 . 612 831 147 . 227 487 272 246 . 285 351 207 669 1390 369 1059 1526 Parts 3210 | . 23 . 787 . 35 222 . . 101 358 28 224 . . . . . 438 . 120 874 Protomatter Decayed 1369 | . . 34 150 . 22 . . . . . 17 29 . . 39 13 65 510 27 53 410 Game ------ Seed FrostRapidBoregun Manual? 0 Play Time 06:13:46 Cumulative 157.5 hours Start 2025.10.23 @ 16:44:45 End 2025.11.02 @ 05:13:36 Sessions 3 Manual Loads 0 Difficulty Rogue Special Mode Winter2019/RPGLIKE Game No. 70 Rogue 66 Adventurer 4 Explorer 0 Win Type 0 Total 4 Types 3/0/1/0/0/0/0/0/0/0 Lore% 64 Gallery% 49 Achievement% 35 Wizard Run 0 Options --------- Layout 0 ASCII 0 Keyboard 0 Movement Arrows Keybinds 0 Fullscreen 2 Font 32/SmallcapsGlow Map View 88x55 Zoom Use 0% Tactical HUD 1 Map Filters NONE Filters NONE Steam 1 RUN: 1dbac465-dbfa-4929-b099-77762e66fe4a